[Event "*** Titled Tuesday Blitz"]
[Site "Chess.com"]
[Date "2020.02.04"]
[Round "1"]
[White "KRASAVCHIK2002"]
[Black "hanzo_hasashi1"]
[Result "1-0"]
[WhiteElo "2506"]
[BlackElo "2902"]
[TimeControl "180+2"]
[EndTime "13:09:40 PST"]
[Termination "KRASAVCHIK2002 won by resignation"]

1. e4 {[%clk 0:02:56.5]} 1... c5 {[%clk 0:02:59.9]} 2. Nf3 {[%clk 0:02:55.8]}
2... d6 {[%clk 0:03:00.7]} 3. d4 {[%clk 0:02:56.6]} 3... cxd4 {[%clk 0:03:01.5]}
4. Nxd4 {[%clk 0:02:58.1]} 4... Nf6 {[%clk 0:03:02.9]} 5. Nc3 {[%clk 0:02:59]}
5... a6 {[%clk 0:03:03.6]} 6. f3 {[%clk 0:03:00.4]} 6... e5 {[%clk 0:03:03.4]}
7. Nb3 {[%clk 0:03:01.8]} 7... Be6 {[%clk 0:03:04]} 8. Be3 {[%clk 0:03:03.3]}
8... h5 {[%clk 0:03:05]} 9. Qd2 {[%clk 0:03:01.7]} 9... Nbd7 {[%clk 0:03:05.6]}
10. Nd5 {[%clk 0:03:02.8]} 10... Bxd5 {[%clk 0:03:03.5]} 11. exd5 {[%clk
0:03:04.3]} 11... g6 {[%clk 0:02:44.2]} 12. Be2 {[%clk 0:03:03.2]} 12... Qc7
{[%clk 0:02:23.5]} 13. Rc1 {[%clk 0:02:57.6]} 13... Bg7 {[%clk 0:02:21.3]} 14.
O-O {[%clk 0:02:55.4]} 14... O-O {[%clk 0:02:19.2]} 15. c4 {[%clk 0:02:56.1]}
15... b6 {[%clk 0:02:19.9]} 16. Na1 {[%clk 0:02:53.9]} 16... a5 {[%clk
0:02:02.2]} 17. Nc2 {[%clk 0:02:51.5]} 17... Nc5 {[%clk 0:02:02.7]} 18. b3
{[%clk 0:02:50.5]} 18... Kh7 {[%clk 0:02:01.8]} 19. Na3 {[%clk 0:02:42.5]} 19...
Ng8 {[%clk 0:02:01.4]} 20. Nb5 {[%clk 0:02:38.7]} 20... Qd7 {[%clk 0:01:56.8]}
21. Qc2 {[%clk 0:01:55.4]} 21... Bh6 {[%clk 0:01:55]} 22. Bxh6 {[%clk
0:01:04.9]} 22... Nxh6 {[%clk 0:01:54.8]} 23. a3 {[%clk 0:01:02.5]} 23... a4
{[%clk 0:01:48.1]} 24. b4 {[%clk 0:01:01.9]} 24... Nb3 {[%clk 0:01:48.9]} 25.
Rce1 {[%clk 0:00:58]} 25... Nf5 {[%clk 0:01:48.9]} 26. Bd3 {[%clk 0:00:56]}
26... Nfd4 {[%clk 0:01:45.4]} 27. Nxd4 {[%clk 0:00:54.7]} 27... Nxd4 {[%clk
0:01:45.7]} 28. Qf2 {[%clk 0:00:55.6]} 28... b5 {[%clk 0:01:37.9]} 29. cxb5
{[%clk 0:00:33.9]} 29... Nxb5 {[%clk 0:01:38]} 30. f4 {[%clk 0:00:31.6]} 30...
exf4 {[%clk 0:00:46.6]} 31. Qxf4 {[%clk 0:00:30.7]} 31... Nc7 {[%clk 0:00:47.3]}
32. Qg5 {[%clk 0:00:26.4]} 32... Rae8 {[%clk 0:00:42]} 33. Qxh5+ {[%clk
0:00:18.5]} 33... Kg7 {[%clk 0:00:42.7]} 34. Qg5 {[%clk 0:00:19.1]} 34... Rxe1
{[%clk 0:00:38.7]} 35. Rxe1 {[%clk 0:00:21]} 35... Re8 {[%clk 0:00:39.9]} 36.
Rxe8 {[%clk 0:00:19.9]} 36... Qxe8 {[%clk 0:00:40.9]} 37. Kf2 {[%clk 0:00:20.1]}
37... f6 {[%clk 0:00:37.6]} 38. Qe3 {[%clk 0:00:19.5]} 38... Qd7 {[%clk
0:00:32.6]} 39. Qa7 {[%clk 0:00:18.5]} 39... Kh6 {[%clk 0:00:31.5]} 40. b5
{[%clk 0:00:19.6]} 40... Qd8 {[%clk 0:00:29.6]} 41. b6 {[%clk 0:00:19.7]} 41...
Nxd5 {[%clk 0:00:29.2]} 42. b7 {[%clk 0:00:20.9]} 42... f5 {[%clk 0:00:27.1]}
43. b8=Q {[%clk 0:00:20.8]} 43... Qh4+ {[%clk 0:00:27.8]} 44. Kg1 {[%clk
0:00:15.9]} 44... Qe1+ {[%clk 0:00:28.3]} 45. Bf1 {[%clk 0:00:17.1]} 45... Ne3
{[%clk 0:00:29.1]} 46. Qh8+ {[%clk 0:00:15.8]} 46... Kg5 {[%clk 0:00:30]} 47.
Qe7+ {[%clk 0:00:14]} 47... Kg4 {[%clk 0:00:30.9]} 48. h3+ {[%clk 0:00:14.9]}
48... Kf4 {[%clk 0:00:31.6]} 49. Qh6+ {[%clk 0:00:15.9]} 1-0

[Event "*** Titled Tuesday Blitz"]
[Site "Chess.com"]
[Date "2020.02.04"]
[Round "1"]
[White "ehrenfeld"]
[Black "Micki-taryan"]
[Result "0-1"]
[WhiteElo "2507"]
[BlackElo "3006"]
[TimeControl "180+2"]
[EndTime "13:09:45 PST"]
[Termination "Micki-taryan won by checkmate"]

1. e4 {[%clk 0:02:59.7]} 1... c5 {[%clk 0:02:59.7]} 2. d3 {[%clk 0:02:59.1]}
2... Nc6 {[%clk 0:02:59.6]} 3. f4 {[%clk 0:03:00.1]} 3... d5 {[%clk 0:02:58.9]}
4. Be2 {[%clk 0:03:00.8]} 4... Nf6 {[%clk 0:02:56]} 5. e5 {[%clk 0:03:01.1]}
5... Ng8 {[%clk 0:02:53.6]} 6. Nf3 {[%clk 0:03:01.7]} 6... Bg4 {[%clk
0:02:54.2]} 7. c3 {[%clk 0:03:02.5]} 7... e6 {[%clk 0:02:55.5]} 8. Na3 {[%clk
0:02:57.5]} 8... h5 {[%clk 0:02:55.5]} 9. Nc2 {[%clk 0:02:58.2]} 9... Nh6 {[%clk
0:02:56.9]} 10. d4 {[%clk 0:02:57.4]} 10... Qb6 {[%clk 0:02:52.9]} 11. O-O
{[%clk 0:02:54.3]} 11... Be7 {[%clk 0:02:53.8]} 12. dxc5 {[%clk 0:02:37.7]}
12... Bxc5+ {[%clk 0:02:54.7]} 13. Kh1 {[%clk 0:02:38.5]} 13... a5 {[%clk
0:02:54]} 14. Ncd4 {[%clk 0:02:25.1]} 14... Bxf3 {[%clk 0:02:51.7]} 15. Nxf3
{[%clk 0:02:13.5]} 15... Nf5 {[%clk 0:02:44.5]} 16. Bd3 {[%clk 0:02:01.7]} 16...
Nce7 {[%clk 0:02:45.9]} 17. g3 {[%clk 0:01:51.4]} 17... g6 {[%clk 0:02:38.5]}
18. Kg2 {[%clk 0:01:51.2]} 18... Be3 {[%clk 0:02:39.6]} 19. Qa4+ {[%clk
0:01:43.2]} 19... Kf8 {[%clk 0:02:39.8]} 20. Qb5 {[%clk 0:01:23.2]} 20... Qxb5
{[%clk 0:02:18.5]} 21. Bxb5 {[%clk 0:01:23.3]} 21... h4 {[%clk 0:02:20.3]} 22.
Re1 {[%clk 0:01:13]} 22... h3+ {[%clk 0:02:17]} 23. Kh1 {[%clk 0:01:09.5]} 23...
Bf2 {[%clk 0:02:14.4]} 24. Re2 {[%clk 0:01:10]} 24... Bb6 {[%clk 0:02:06.5]} 25.
a4 {[%clk 0:01:04.8]} 25... Kg7 {[%clk 0:02:07.2]} 26. Bd2 {[%clk 0:01:05]}
26... Nh6 {[%clk 0:02:07.7]} 27. Be3 {[%clk 0:00:58.9]} 27... Bxe3 {[%clk
0:02:07.9]} 28. Rxe3 {[%clk 0:01:00.1]} 28... Ng4 {[%clk 0:02:07.5]} 29. Re2
{[%clk 0:01:01]} 29... Nf5 {[%clk 0:02:01]} 30. Rae1 {[%clk 0:01:00.3]} 30...
Rac8 {[%clk 0:02:00.6]} 31. Bd3 {[%clk 0:01:00.8]} 31... Ne7 {[%clk 0:02:00.9]}
32. Nd4 {[%clk 0:00:56.5]} 32... Nc6 {[%clk 0:02:02.2]} 33. Nb5 {[%clk 0:00:54]}
33... Nb8 {[%clk 0:02:02.6]} 34. Rd2 {[%clk 0:00:54.7]} 34... Nd7 {[%clk
0:02:01.7]} 35. Kg1 {[%clk 0:00:55]} 35... Nc5 {[%clk 0:02:02.6]} 36. Bc2 {[%clk
0:00:56.1]} 36... Rc6 {[%clk 0:01:59.4]} 37. Nd4 {[%clk 0:00:55.9]} 37... Rb6
{[%clk 0:01:59.6]} 38. Bd1 {[%clk 0:00:55.1]} 38... Nh6 {[%clk 0:01:57.7]} 39.
Be2 {[%clk 0:00:49.6]} 39... Nf5 {[%clk 0:01:54.4]} 40. Nxf5+ {[%clk 0:00:49.7]}
40... gxf5 {[%clk 0:01:52.2]} 41. Bb5 {[%clk 0:00:50.2]} 41... Na6 {[%clk
0:01:50.5]} 42. Bxa6 {[%clk 0:00:50.2]} 42... Rxa6 {[%clk 0:01:48.4]} 43. Kf2
{[%clk 0:00:50.1]} 43... Rb6 {[%clk 0:01:49]} 44. Rg1 {[%clk 0:00:49.9]} 44...
Rc8 {[%clk 0:01:46.9]} 45. g4 {[%clk 0:00:49.9]} 45... fxg4 {[%clk 0:01:48.8]}
46. Rxg4+ {[%clk 0:00:50.6]} 46... Kf8 {[%clk 0:01:50.7]} 47. f5 {[%clk
0:00:47.4]} 47... exf5 {[%clk 0:01:52.3]} 48. Rh4 {[%clk 0:00:38.7]} 48... Ke7
{[%clk 0:01:50.3]} 49. Ke3 {[%clk 0:00:33]} 49... Rg8 {[%clk 0:01:39.9]} 50.
Rxh3 {[%clk 0:00:31]} 50... Rg4 {[%clk 0:01:36.9]} 51. Rh5 {[%clk 0:00:20]}
51... Re4+ {[%clk 0:01:24.9]} 52. Kd3 {[%clk 0:00:19.1]} 52... Rxe5 {[%clk
0:01:26.8]} 53. Rf2 {[%clk 0:00:15.3]} 53... Ke6 {[%clk 0:01:23.6]} 54. Rh6+
{[%clk 0:00:15.9]} 54... f6 {[%clk 0:01:25.3]} 55. Rg2 {[%clk 0:00:16.6]} 55...
f4 {[%clk 0:01:25]} 56. Rg8 {[%clk 0:00:13.8]} 56... Re3+ {[%clk 0:01:24.9]} 57.
Kd4 {[%clk 0:00:12.7]} 57... Re4+ {[%clk 0:01:24.9]} 58. Kc5 {[%clk 0:00:12.6]}
58... Rxb2 {[%clk 0:01:24.3]} 59. Re8+ {[%clk 0:00:09.1]} 59... Kf5 {[%clk
0:01:25.3]} 60. Rd8 {[%clk 0:00:10.1]} 60... Rc4+ {[%clk 0:01:25.7]} 61. Kxd5
{[%clk 0:00:09.8]} 61... Rc6 {[%clk 0:01:26.9]} 62. Rb8 {[%clk 0:00:06.6]} 62...
Rd2# {[%clk 0:01:27.4]} 0-1

[Event "*** Titled Tuesday Blitz"]
[Site "Chess.com"]
[Date "2020.02.04"]
[Round "1"]
[White "Kosche007"]
[Black "GianmarcoVaR"]
[Result "0-1"]
[WhiteElo "2297"]
[BlackElo "2633"]
[TimeControl "180+2"]
[EndTime "13:09:47 PST"]
[Termination "GianmarcoVaR won by resignation"]

1. e4 {[%clk 0:03:01.9]} 1... c5 {[%clk 0:02:58.7]} 2. Nf3 {[%clk 0:03:02.5]}
2... d6 {[%clk 0:02:58.6]} 3. d4 {[%clk 0:03:03.1]} 3... cxd4 {[%clk 0:02:59.3]}
4. Nxd4 {[%clk 0:03:04.2]} 4... Nf6 {[%clk 0:02:59.9]} 5. Nc3 {[%clk 0:03:05.3]}
5... a6 {[%clk 0:03:00.6]} 6. Be2 {[%clk 0:03:04.6]} 6... e5 {[%clk 0:02:49.7]}
7. Nb3 {[%clk 0:03:05.5]} 7... Be7 {[%clk 0:02:41.5]} 8. Bg5 {[%clk 0:03:05.6]}
8... Be6 {[%clk 0:02:37.9]} 9. Bxf6 {[%clk 0:03:04.4]} 9... Bxf6 {[%clk
0:02:38.5]} 10. Qd3 {[%clk 0:03:05.8]} 10... Qb6 {[%clk 0:02:04.6]} 11. Rd1
{[%clk 0:03:00.2]} 11... Be7 {[%clk 0:01:14.3]} 12. Nd5 {[%clk 0:02:59]} 12...
Bxd5 {[%clk 0:01:14.6]} 13. Qxd5 {[%clk 0:03:00.7]} 13... O-O {[%clk 0:01:10.9]}
14. O-O {[%clk 0:02:59.9]} 14... Nd7 {[%clk 0:01:12.2]} 15. Qa5 {[%clk
0:02:48.4]} 15... Qc6 {[%clk 0:01:11.7]} 16. Bd3 {[%clk 0:02:34.2]} 16... Nf6
{[%clk 0:01:04.9]} 17. Nd2 {[%clk 0:02:10.2]} 17... b5 {[%clk 0:01:03.2]} 18.
Rfe1 {[%clk 0:01:50.8]} 18... Bd8 {[%clk 0:00:34.7]} 19. Qa3 {[%clk 0:01:48.1]}
19... a5 {[%clk 0:00:32.2]} 20. Nf1 {[%clk 0:01:42.1]} 20... Bb6 {[%clk
0:00:28.3]} 21. Ne3 {[%clk 0:01:34.7]} 21... Bc5 {[%clk 0:00:20.9]} 22. Qb3
{[%clk 0:01:33.7]} 22... Rab8 {[%clk 0:00:18.1]} 23. c3 {[%clk 0:01:21.9]} 23...
b4 {[%clk 0:00:13.1]} 24. Qc2 {[%clk 0:01:18.1]} 24... bxc3 {[%clk 0:00:13.8]}
25. bxc3 {[%clk 0:01:14.2]} 25... Bxe3 {[%clk 0:00:15]} 26. Rxe3 {[%clk
0:01:14.2]} 26... a4 {[%clk 0:00:16.5]} 27. Ree1 {[%clk 0:01:12.3]} 27... Rfc8
{[%clk 0:00:15.7]} 28. Rb1 {[%clk 0:01:06.6]} 28... g6 {[%clk 0:00:15.3]} 29. c4
{[%clk 0:01:06.3]} 29... Nd7 {[%clk 0:00:13.9]} 30. f3 {[%clk 0:00:53.7]} 30...
Nc5 {[%clk 0:00:14.7]} 31. Bf1 {[%clk 0:00:53.4]} 31... Ne6 {[%clk 0:00:15.9]}
32. Rxb8 {[%clk 0:00:52.9]} 32... Rxb8 {[%clk 0:00:16.8]} 33. Rb1 {[%clk
0:00:54.6]} 33... Rxb1 {[%clk 0:00:13.5]} 34. Qxb1 {[%clk 0:00:55.6]} 34... Kg7
{[%clk 0:00:15.2]} 35. g3 {[%clk 0:00:42.2]} 35... Qc5+ {[%clk 0:00:11.5]} 36.
Kg2 {[%clk 0:00:43.1]} 36... Qe3 {[%clk 0:00:11.5]} 37. Qd3 {[%clk 0:00:39.1]}
37... Qxd3 {[%clk 0:00:11.9]} 38. Bxd3 {[%clk 0:00:41]} 38... Nc5 {[%clk
0:00:10]} 39. Bc2 {[%clk 0:00:42.1]} 39... Kf6 {[%clk 0:00:08.1]} 40. Kf2 {[%clk
0:00:42]} 40... Ke6 {[%clk 0:00:09.4]} 41. Ke3 {[%clk 0:00:43.2]} 41... f5
{[%clk 0:00:10.9]} 42. f4 {[%clk 0:00:42.7]} 42... Kf6 {[%clk 0:00:08.5]} 43. h3
{[%clk 0:00:40.5]} 43... exf4+ {[%clk 0:00:06]} 44. gxf4 {[%clk 0:00:40.8]}
44... h6 {[%clk 0:00:04]} 45. exf5 {[%clk 0:00:36]} 45... gxf5 {[%clk
0:00:05.2]} 46. h4 {[%clk 0:00:37.7]} 46... Kg6 {[%clk 0:00:05.6]} 47. Bd1
{[%clk 0:00:37.9]} 47... Kf6 {[%clk 0:00:03.1]} 48. Kd4 {[%clk 0:00:36.8]} 48...
Ke6 {[%clk 0:00:04.4]} 49. Bf3 {[%clk 0:00:38.1]} 49... Kf6 {[%clk 0:00:05.6]}
50. Kd5 {[%clk 0:00:38.4]} 50... Ke7 {[%clk 0:00:06.9]} 51. Kc6 {[%clk
0:00:37.4]} 51... Ne6 {[%clk 0:00:08]} 52. Kb5 {[%clk 0:00:33.3]} 52... Nd4+
{[%clk 0:00:09]} 53. Kxa4 {[%clk 0:00:33.1]} 53... Nxf3 {[%clk 0:00:10.6]} 54.
Kb5 {[%clk 0:00:34.2]} 54... Nxh4 {[%clk 0:00:12]} 55. a4 {[%clk 0:00:35.6]}
55... Kd7 {[%clk 0:00:13.3]} 56. Kb6 {[%clk 0:00:36.9]} 56... Ng6 {[%clk
0:00:12]} 57. Kb7 {[%clk 0:00:36.6]} 57... Ne7 {[%clk 0:00:13]} 58. a5 {[%clk
0:00:38]} 58... h5 {[%clk 0:00:14.4]} 59. a6 {[%clk 0:00:38.9]} 59... Nc6 {[%clk
0:00:15.7]} 0-1

[Event "*** Titled Tuesday Blitz"]
[Site "Chess.com"]
[Date "2020.02.04"]
[Round "1"]
[White "Alexander_Moskalenko"]
[Black "kingofthenil"]
[Result "0-1"]
[WhiteElo "2844"]
[BlackElo "2482"]
[TimeControl "180+2"]
[EndTime "13:09:48 PST"]
[Termination "kingofthenil won on time"]

1. c4 {[%clk 0:03:00.6]} 1... e6 {[%clk 0:02:58.8]} 2. Nf3 {[%clk 0:02:59.8]}
2... Nf6 {[%clk 0:02:59.8]} 3. d4 {[%clk 0:02:58.2]} 3... c5 {[%clk 0:03:00.6]}
4. d5 {[%clk 0:02:58.3]} 4... d6 {[%clk 0:03:01.4]} 5. Nc3 {[%clk 0:02:57.8]}
5... exd5 {[%clk 0:03:02.9]} 6. cxd5 {[%clk 0:02:59.1]} 6... g6 {[%clk
0:03:04.4]} 7. e4 {[%clk 0:02:57]} 7... Bg7 {[%clk 0:03:05.2]} 8. Nd2 {[%clk
0:02:54]} 8... O-O {[%clk 0:03:05.9]} 9. Be2 {[%clk 0:02:55.9]} 9... Re8 {[%clk
0:03:04.7]} 10. O-O {[%clk 0:02:54.3]} 10... Nbd7 {[%clk 0:03:06]} 11. Re1
{[%clk 0:02:53.8]} 11... Ne5 {[%clk 0:02:50.6]} 12. a4 {[%clk 0:02:55.7]} 12...
a6 {[%clk 0:02:50.7]} 13. Nf1 {[%clk 0:02:50.1]} 13... Bg4 {[%clk 0:02:45.5]}
14. f3 {[%clk 0:02:41.6]} 14... Bc8 {[%clk 0:02:40.7]} 15. a5 {[%clk 0:02:43.5]}
15... b5 {[%clk 0:02:18]} 16. axb6 {[%clk 0:02:43.4]} 16... Qxb6 {[%clk
0:02:19.6]} 17. Ne3 {[%clk 0:02:41.6]} 17... Nh5 {[%clk 0:02:05.6]} 18. Nc4
{[%clk 0:02:17.1]} 18... Nxc4 {[%clk 0:02:04.8]} 19. Bxc4 {[%clk 0:02:19]} 19...
Be5 {[%clk 0:01:59.9]} 20. Ne2 {[%clk 0:01:40.8]} 20... Bxb2 {[%clk 0:01:31.8]}
21. Rb1 {[%clk 0:01:11]} 21... Bd4+ {[%clk 0:01:29.7]} 22. Qxd4 {[%clk
0:01:12.2]} 22... Qxb1 {[%clk 0:01:26.2]} 23. Qc3 {[%clk 0:00:17.3]} 23... Qb4
{[%clk 0:01:26.5]} 24. Ba3 {[%clk 0:00:18.8]} 24... Qxc3 {[%clk 0:01:24.7]} 25.
Nxc3 {[%clk 0:00:15.2]} 25... Bd7 {[%clk 0:01:24]} 26. Ra1 {[%clk 0:00:16]}
26... f5 {[%clk 0:01:21]} 27. Kf2 {[%clk 0:00:16.3]} 27... Nf6 {[%clk
0:01:18.4]} 28. Ke3 {[%clk 0:00:14.7]} 28... fxe4 {[%clk 0:01:18.7]} 29. fxe4
{[%clk 0:00:15.3]} 29... Ng4+ {[%clk 0:01:19.6]} 30. Kd2 {[%clk 0:00:15]} 30...
Rf8 {[%clk 0:01:15.4]} 31. h3 {[%clk 0:00:14.9]} 31... Ne5 {[%clk 0:01:14.5]}
32. Be2 {[%clk 0:00:16.8]} 32... Rf2 {[%clk 0:01:15.1]} 33. Bc1 {[%clk
0:00:15.8]} 33... Rxg2 {[%clk 0:01:13.8]} 34. Ke3 {[%clk 0:00:16.9]} 34... Rg3+
{[%clk 0:01:12.9]} 35. Kd2 {[%clk 0:00:18.2]} 35... Rxh3 {[%clk 0:01:11.4]} 36.
Rxa6 {[%clk 0:00:19.2]} 36... Rxa6 {[%clk 0:01:12.1]} 37. Bxa6 {[%clk
0:00:21.1]} 37... g5 {[%clk 0:01:06.7]} 38. Kc2 {[%clk 0:00:21.8]} 38... g4
{[%clk 0:01:07.3]} 39. Bf4 {[%clk 0:00:22.6]} 39... Rf3 {[%clk 0:01:03]} 40.
Bxe5 {[%clk 0:00:23.7]} 40... dxe5 {[%clk 0:01:04.6]} 41. Be2 {[%clk 0:00:24.9]}
41... Rf2 {[%clk 0:01:04.1]} 42. Kd2 {[%clk 0:00:25.7]} 42... g3 {[%clk
0:01:02.3]} 43. Ke3 {[%clk 0:00:27.6]} 43... Kg7 {[%clk 0:00:58.6]} 44. d6
{[%clk 0:00:27.5]} 44... Kg6 {[%clk 0:00:56.6]} 45. Nd5 {[%clk 0:00:28.5]} 45...
Rf7 {[%clk 0:00:50.3]} 46. Bf3 {[%clk 0:00:29.3]} 46... h5 {[%clk 0:00:37.1]}
47. Ne7+ {[%clk 0:00:30.3]} 47... Kg5 {[%clk 0:00:38.1]} 48. Nf5 {[%clk
0:00:29]} 48... Bxf5 {[%clk 0:00:36.6]} 49. exf5 {[%clk 0:00:30.9]} 49... Rxf5
{[%clk 0:00:34]} 50. d7 {[%clk 0:00:27]} 50... Rf8 {[%clk 0:00:35.1]} 51. Bg2
{[%clk 0:00:28.9]} 51... Rd8 {[%clk 0:00:35.2]} 52. Bh3 {[%clk 0:00:30.1]} 52...
Kh4 {[%clk 0:00:35.3]} 53. Be6 {[%clk 0:00:31.2]} 53... c4 {[%clk 0:00:34.8]}
54. Bxc4 {[%clk 0:00:30.2]} 54... Rxd7 {[%clk 0:00:35.8]} 55. Kf3 {[%clk
0:00:32.1]} 55... Rd4 {[%clk 0:00:36.5]} 56. Be6 {[%clk 0:00:32.7]} 56... Rf4+
{[%clk 0:00:37.6]} 57. Kg2 {[%clk 0:00:34]} 57... Rf2+ {[%clk 0:00:38.5]} 58.
Kg1 {[%clk 0:00:35.9]} 58... Kg5 {[%clk 0:00:39.9]} 59. Bh3 {[%clk 0:00:36.8]}
59... h4 {[%clk 0:00:41.7]} 0-1

[Event "*** Titled Tuesday Blitz"]
[Site "Chess.com"]
[Date "2020.02.04"]
[Round "1"]
[White "lilleper1"]
[Black "goldenspine"]
[Result "1-0"]
[WhiteElo "2687"]
[BlackElo "2354"]
[TimeControl "180+2"]
[EndTime "13:09:52 PST"]
[Termination "lilleper1 won by resignation"]

1. e4 {[%clk 0:03:01.9]} 1... c6 {[%clk 0:03:00.9]} 2. d4 {[%clk 0:03:02.3]}
2... d5 {[%clk 0:03:02.4]} 3. e5 {[%clk 0:03:03.9]} 3... Bf5 {[%clk 0:03:03.2]}
4. Nd2 {[%clk 0:03:05.1]} 4... h6 {[%clk 0:03:02]} 5. Nb3 {[%clk 0:03:05.6]}
5... e6 {[%clk 0:03:02.1]} 6. Nf3 {[%clk 0:03:06.7]} 6... Nd7 {[%clk 0:02:59]}
7. Be2 {[%clk 0:03:06.6]} 7... Ne7 {[%clk 0:02:34.5]} 8. O-O {[%clk 0:03:06.8]}
8... g5 {[%clk 0:02:29.5]} 9. Bd2 {[%clk 0:03:07]} 9... Bg7 {[%clk 0:02:30.4]}
10. a4 {[%clk 0:03:00.1]} 10... O-O {[%clk 0:02:28.1]} 11. Bb4 {[%clk
0:02:58.4]} 11... b6 {[%clk 0:01:55.1]} 12. Bd3 {[%clk 0:02:40.9]} 12... Bxd3
{[%clk 0:01:52.2]} 13. cxd3 {[%clk 0:02:35.4]} 13... a5 {[%clk 0:01:49.9]} 14.
Bd6 {[%clk 0:02:33.7]} 14... Re8 {[%clk 0:01:49.2]} 15. Rc1 {[%clk 0:02:32.7]}
15... Rc8 {[%clk 0:01:50.3]} 16. Ne1 {[%clk 0:02:08]} 16... Nf5 {[%clk
0:01:46.9]} 17. Ba3 {[%clk 0:02:08.6]} 17... f6 {[%clk 0:01:32.6]} 18. exf6
{[%clk 0:01:59.1]} 18... Bxf6 {[%clk 0:01:26]} 19. Qg4 {[%clk 0:01:53.8]} 19...
Nf8 {[%clk 0:00:57.6]} 20. Nf3 {[%clk 0:01:46.5]} 20... Qd7 {[%clk 0:00:58.3]}
21. h4 {[%clk 0:01:40.2]} 21... Qg7 {[%clk 0:00:55.1]} 22. hxg5 {[%clk
0:01:38.6]} 22... hxg5 {[%clk 0:00:57]} 23. Rfe1 {[%clk 0:01:29.9]} 23... Nd7
{[%clk 0:00:54.3]} 24. Bd6 {[%clk 0:01:25.5]} 24... Nxd6 {[%clk 0:00:54]} 25.
Rxe6 {[%clk 0:01:23.1]} 25... Rxe6 {[%clk 0:00:55]} 26. Qxe6+ {[%clk 0:01:22.7]}
26... Qf7 {[%clk 0:00:44.6]} 27. Qxd6 {[%clk 0:01:22.9]} 27... g4 {[%clk
0:00:36.3]} 28. Ne5 {[%clk 0:01:17]} 28... Nxe5 {[%clk 0:00:21.7]} 29. dxe5
{[%clk 0:01:17.3]} 29... Bh4 {[%clk 0:00:21.5]} 30. g3 {[%clk 0:00:55.3]} 30...
Rf8 {[%clk 0:00:22.2]} 31. Rc2 {[%clk 0:00:33]} 31... Bxg3 {[%clk 0:00:23.3]}
32. Qf6 {[%clk 0:00:31.3]} 32... Qxf6 {[%clk 0:00:13.6]} 33. exf6 {[%clk
0:00:31.8]} 33... Be5 {[%clk 0:00:14.3]} 34. d4 {[%clk 0:00:28.1]} 34... Bxf6
{[%clk 0:00:12.6]} 35. Rxc6 {[%clk 0:00:29.6]} 35... Re8 {[%clk 0:00:13]} 36.
Rxf6 {[%clk 0:00:29.6]} 36... Re2 {[%clk 0:00:13.8]} 37. Rxb6 {[%clk 0:00:27.5]}
37... Rxb2 {[%clk 0:00:14.6]} 38. Rb5 {[%clk 0:00:28.5]} 38... Kf7 {[%clk
0:00:13.7]} 39. Nxa5 {[%clk 0:00:27.6]} 39... Ra2 {[%clk 0:00:14.2]} 40. Rb4
{[%clk 0:00:27.6]} 40... Ke6 {[%clk 0:00:13.7]} 41. Nc6 {[%clk 0:00:28.4]} 41...
Kf5 {[%clk 0:00:14.5]} 42. Ne5 {[%clk 0:00:25.7]} 42... Kf4 {[%clk 0:00:15.1]}
43. Nd3+ {[%clk 0:00:23.4]} 43... Kf3 {[%clk 0:00:14.1]} 44. Ne1+ {[%clk
0:00:23.5]} 44... Ke2 {[%clk 0:00:14.3]} 45. Rb1 {[%clk 0:00:19.3]} 45... Rxa4
{[%clk 0:00:14.3]} 46. Ng2 {[%clk 0:00:20.7]} 46... Rxd4 {[%clk 0:00:14.9]} 47.
Re1+ {[%clk 0:00:20.9]} 47... Kd2 {[%clk 0:00:13.2]} 48. Re7 {[%clk 0:00:21]}
48... Rc4 {[%clk 0:00:12]} 49. Rd7 {[%clk 0:00:20.6]} 49... Rc1+ {[%clk
0:00:12.5]} 50. Kh2 {[%clk 0:00:21.4]} 50... Ke2 {[%clk 0:00:13.9]} 51. Kg3
{[%clk 0:00:22.2]} 51... Rc3+ {[%clk 0:00:14.4]} 52. Ne3 {[%clk 0:00:22.1]}
52... Rd3 {[%clk 0:00:15.1]} 53. Rxd5 {[%clk 0:00:21.8]} 53... Ra3 {[%clk
0:00:16.1]} 54. Rf5 {[%clk 0:00:21.7]} 54... Ra1 {[%clk 0:00:16.6]} 55. Kxg4
{[%clk 0:00:21]} 55... Rg1+ {[%clk 0:00:17.5]} 56. Kh3 {[%clk 0:00:22]} 56...
Rh1+ {[%clk 0:00:18.3]} 57. Kg2 {[%clk 0:00:22.9]} 57... Rh4 {[%clk 0:00:19.1]}
58. Rf3 {[%clk 0:00:21.9]} 58... Rh2+ {[%clk 0:00:19.1]} 59. Kxh2 {[%clk
0:00:22.1]} 59... Kxf3 {[%clk 0:00:21]} 60. Kg1 {[%clk 0:00:23.5]} 60... Ke2
{[%clk 0:00:21.2]} 61. Kg2 {[%clk 0:00:24.3]} 1-0